fUSD/lending_fUSD_20260412
["ID","MTS","AMOUNT","RATE_DAILY","PERIOD"]
[420304070,1775947869624,-2700.0,0.000157,5]
[420304071,1775947869638,-443.0,0.00015708,2]
[420304072,1775947869649,-369.02,0.00015774,2]
[420304073,1775947869664,-3600.0,0.000158,5]
[420304074,1775947869674,-255.29527567,0.00015811,2]
[420304075,1775947869687,-500.0,0.0001589,2]
[420304076,1775947869697,-500.0,0.0001589,2]
[420304077,1775947869724,-500.0,0.0001589,2]
[420304078,1775947869744,-500.0,0.0001589,2]
[420304079,1775947869755,-500.0,0.0001589,2]
[420304080,1775947869766,-500.0,0.0001589,2]
[420304081,1775947869787,-152.16340629,0.0001589,2]
[420304082,1775947869797,-2000.0,0.0001589,2]
[420304083,1775947869809,-3242.24,0.00015895,2]
[420304084,1775947869837,-500.0,0.00015899,7]
[420304085,1775947869855,-4600.0,0.000159,5]
[420304086,1775947869883,-46864.9820388,0.000159,2]
[420304087,1775947869900,-10000.0,0.000159,2]
[420304088,1775947869930,-151.0,0.000159,2]
[420304089,1775947869976,-151.0,0.000159,2]
[420304090,1775947870006,-151.0,0.000159,2]
[420304091,1775947870030,-396.63750738,0.000159,2]
[420304092,1775947870046,-151.0,0.000159,2]
[420304093,1775947870058,-151.0,0.000159,2]
[420304094,1775947870069,-151.0,0.000159,2]
[420304095,1775947870080,-151.0,0.000159,2]
[420304096,1775947870089,-266.307176,0.000159,2]
[420304097,1775947870108,-175.241912,0.000159,2]
[420304098,1775947870119,-3036.35083106,0.000159,2]
[420304099,1775947870143,-151.0,0.000159,2]
[420304100,1775947870152,-151.0,0.000159,2]
[420304101,1775947870162,-151.0,0.000159,2]
[420304102,1775947870186,-507.33557438,0.000159,2]
[420304103,1775947870196,-353.73390588,0.000159,2]
[420304104,1775947870205,-352.809107,0.000159,2]
[420304105,1775947870233,-352.809107,0.000159,2]
[420304106,1775947870243,-352.809107,0.000159,2]
[420304107,1775947870259,-352.809107,0.000159,2]
[420304108,1775947870273,-1338.59698899,0.000159,2]
[420304109,1775947870284,-8605.53990224,0.000159,2]
[420304110,1775947870296,-247.63761738,0.000159,2]
[420304111,1775947870315,-1600.0,0.000159,2]
[420304112,1775947870332,-160.0,0.00015953,2]
[420304113,1775947870355,-160.0,0.00015953,2]
[420304114,1775947870376,-2000.0,0.00015959,2]
[420304115,1775947870387,-5000.0,0.0001596,2]
[420304116,1775947870403,-153.38,0.00015971,2]
[420304117,1775947870425,-500.0,0.00015973,2]
[420304118,1775947870445,-500.0,0.00015973,2]
[420304119,1775947870457,-500.0,0.00015973,2]
[420304120,1775947870483,-500.0,0.00015973,2]
[420304121,1775947870507,-500.0,0.00015973,2]
[420304122,1775947870518,-500.0,0.00015973,2]
[420304123,1775947870529,-500.0,0.00015973,2]
[420304124,1775947870544,-500.0,0.00015973,2]
[420304125,1775947870559,-503.45497467,0.00015973,2]
[420304126,1775947870568,-589.16060176,0.00015973,2]
[420304127,1775947870579,-172.88416259,0.0001599,2]
[420304128,1775947870596,-172.88416259,0.0001599,2]
[420304129,1775947870608,-500.0,0.00015999,2]
[420304130,1775947870617,-500.0,0.00015999,2]
[420304131,1775947870645,-500.0,0.00015999,2]
[420304132,1775947870655,-500.0,0.00015999,2]
[420304133,1775947870664,-500.0,0.00015999,2]
[420304134,1775947870805,-500.0,0.00015999,2]
[420304135,1775947870817,-500.0,0.00015999,2]
[420304136,1775947870835,-500.0,0.00015999,2]
[420304137,1775947870854,-500.0,0.00015999,2]
[420304138,1775947870868,-232.65571075,0.00015999,2]
[420304139,1775947870881,-646.9,0.00015999,2]
[420304140,1775947870898,-646.9,0.00015999,2]
[420304141,1775947870919,-646.9,0.00015999,2]
[420304142,1775947870928,-646.9,0.00015999,2]
[420304143,1775947870938,-646.9,0.00015999,2]
[420304144,1775947870947,-646.9,0.00015999,2]
[420304145,1775947870966,-646.9,0.00015999,2]
[420304146,1775947870987,-646.9,0.00015999,2]
[420304147,1775947870999,-646.9,0.00015999,2]
[420304148,1775947871008,-646.9,0.00015999,2]
[420304149,1775947871023,-646.9,0.00015999,2]
[420304150,1775947871036,-500.0,0.00015999,2]
[420304151,1775947871045,-500.0,0.00015999,2]
[420304152,1775947871058,-500.0,0.00015999,2]
[420304153,1775947871076,-500.0,0.00015999,2]
[420304154,1775947871085,-367.62918003,0.00015999,2]
[420304155,1775947871095,-309.0,0.00016,5]
[420304156,1775947871114,-251.0,0.00016,5]
[420304157,1775947871147,-755080.78936157,0.00016,2]
[420304158,1775947871156,-23287.07365761,0.00016,2]
[420304159,1775947871166,-317611.03197004,0.00016,2]
[420304160,1775947871189,-1567424.58875297,0.00016,2]
[420304161,1775947871198,-151.0,0.00016,2]
[420304162,1775947871210,-151.0,0.00016,2]
[420304163,1775947871234,-151.0,0.00016,2]
[420304164,1775947871246,-151.0,0.00016,2]
[420304165,1775947871268,-273.978909,0.00016,2]
[420304166,1775947871279,-151.0,0.00016,2]
[420304167,1775947871297,-151.0,0.00016,2]
[420304168,1775947871309,-151.0,0.00016,2]
[420304169,1775947871320,-151.0,0.00016,2]
[420304170,1775947871355,-151.0,0.00016,2]
[420304171,1775947871365,-151.0,0.00016,2]
[420304172,1775947871377,-151.0,0.00016,2]
[420304173,1775947871411,-151.0,0.00016,2]
[420304174,1775947871423,-151.0,0.00016,2]
[420304175,1775947871433,-151.0,0.00016,2]
[420304176,1775947871454,-151.0,0.00016,2]
[420304177,1775947871464,-151.0,0.00016,2]
[420304178,1775947871474,-151.0,0.00016,2]
[420304179,1775947871493,-151.0,0.00016,2]
[420304180,1775947871503,-151.0,0.00016,2]
[420304181,1775947871513,-151.0,0.00016,2]
[420304182,1775947871535,-151.0,0.00016,2]
[420304183,1775947871547,-201.529297,0.00016,2]
[420304184,1775947871557,-352.809107,0.00016,2]
[420304185,1775947871584,-352.809107,0.00016,2]
[420304186,1775947871593,-352.809107,0.00016,2]
[420304187,1775947871603,-352.809107,0.00016,2]
[420304188,1775947871619,-352.809107,0.00016,2]
[420304189,1775947871634,-352.809107,0.00016,2]
[420304190,1775947871659,-352.809107,0.00016,2]
[420304191,1775947871694,-352.809107,0.00016,2]
[420304192,1775947871720,-352.809107,0.00016,2]
[420304193,1775947871742,-352.809107,0.00016,2]
[420304194,1775947871754,-352.809107,0.00016,2]
[420304195,1775947871778,-352.809107,0.00016,2]
[420304196,1775947871787,-2000.0,0.00016004,2]
[420304197,1775947871822,-164.41,0.00016044,2]
[420304198,1775947871832,-369.02,0.00016048,2]
[420304199,1775947871852,-382.74572461,0.00016061,2]
[420304200,1775947871868,-454.77,0.00016116,2]
[420304201,1775947871878,-1000.0,0.00016121,2]
[420304202,1775947871896,-1000.0,0.00016121,2]
[420304203,1775947871915,-231.58259095,0.00016121,2]
[420304204,1775947871925,-502.25267506,0.00016121,2]
[420304205,1775947871935,-501.59977952,0.00016121,2]
[420304206,1775947871947,-3009.98,0.00016134,2]
[420304207,1775947871960,-196.1684305,0.00016141,2]
[420304208,1775947871969,-293.69,0.00016169,2]
[420304209,1775947871979,-443.0,0.00016186,2]
[420304210,1775947871999,-551.0,0.00016192,2]
[420304211,1775947872009,-3242.24,0.00016282,2]
[420304212,1775947872019,-369.02,0.00016322,2]
[420304213,1775947872038,-1069.23,0.00016338,2]
[420304214,1775947872048,-150.0,0.00016339,2]
[420304215,1775947872060,-686.63,0.00016341,2]
[420304216,1775947872080,-299.0,0.00016344,2]
[420304217,1775947872104,-178.60790048,0.00016384,2]
[420304218,1775947872114,-333.96625153,0.00016385,2]
[420304219,1775947872136,-500.0,0.000164,2]
[420304220,1775947872151,-99500.0,0.000164,2]
[420304221,1775947872164,-7618.21696252,0.00016418,2]
[420304222,1775947872177,-1200.0,0.00016422,2]
[420304223,1775947872189,-2400.0,0.00016422,2]
[420304224,1775947872199,-443.0,0.00016432,2]
[420304225,1775947872214,-500.0,0.00016438,2]
[420304226,1775947872226,-500.0,0.00016438,2]
[420304227,1775947872239,-250.0,0.00016438,2]
[420304228,1775947872252,-200.0,0.00016438,2]
[420304229,1775947872274,-227.639899,0.00016464,2]
[420304230,1775947872285,-232.774232,0.00016464,2]
[420304231,1775947872295,-3122.13776735,0.00016506,2]
[420304232,1775947872311,-1000.0,0.00016521,2]
[420304233,1775947872321,-1000.0,0.00016521,2]
[420304234,1775947872330,-1000.0,0.00016521,2]
[420304235,1775947872340,-369.06,0.00016596,2]
[420304236,1775947872357,-221.9407,0.000166,2]
[420304237,1775947872366,-551.0,0.00016605,2]
[420304238,1775947872376,-314.17690918,0.00016651,2]
[420304239,1775947872395,-3913.71,0.00016658,2]
[420304240,1775947872404,-500.0,0.00016668,2]
[420304241,1775947872415,-599.35969967,0.00016668,2]
[420304242,1775947872432,-3242.24,0.0001667,2]
[420304243,1775947872441,-152.4109323,0.0001668,2]
[420304244,1775947872451,-551.0,0.00016726,2]
[420304245,1775947872463,-443.0,0.00016728,2]
[420304246,1775947872479,-183.74,0.0001682,2]
[420304247,1775947872489,-246.0,0.00016861,2]
[420304248,1775947872502,-293.69,0.00016872,2]
[420304249,1775947872515,-1227.84,0.00017019,2]
[420304250,1775947872525,-289.0,0.00017034,2]
[420304251,1775947872536,-265.36742374,0.00017039,2]
[420304252,1775947872546,-3242.24,0.00017058,2]
[420304253,1775947872559,-1500.0,0.00017068,2]
[420304254,1775947872570,-1000.0,0.00017068,2]
[420304255,1775947872583,-1000.0,0.00017068,2]
[420304256,1775947872595,-250.39810572,0.00017072,2]
[420304257,1775947872611,-151.0,0.00017147,2]
[420304258,1775947872622,-171.87298,0.00017147,2]
[420304259,1775947872643,-352.809107,0.00017147,2]
[420304260,1775947872653,-352.809107,0.00017147,2]
[420304261,1775947872663,-352.809107,0.00017147,2]
[420304262,1775947872680,-352.809104,0.00017147,2]
[420304263,1775947872693,-153.0,0.00017148,2]
[420304264,1775947872704,-865.0,0.00017148,2]
[420304265,1775947872718,-1932.0,0.00017148,2]
[420304266,1775947872734,-3789.0,0.00017148,2]
[420304267,1775947872744,-522.0,0.00017148,2]
[420304268,1775947872771,-749.0,0.00017148,2]
[420304269,1775947872795,-1768.0,0.00017148,2]
[420304270,1775947872820,-1035.0,0.00017148,2]
[420304271,1775947872830,-354.0,0.00017183,2]
[420304272,1775947872840,-1600.0,0.00017346,2]
[420304273,1775947872860,-5800.0,0.00017366,2]
[420304274,1775947872883,-151.0,0.00017366,2]
[420304275,1775947872892,-151.0,0.00017366,2]
[420304276,1775947872910,-5800.0,0.00017374,2]
[420304277,1775947872924,-5800.0,0.00017383,2]
[420304278,1775947872956,-646.9,0.00017391,2]
[420304279,1775947872968,-5800.0,0.00017391,2]
[420304280,1775947873011,-5800.0,0.000174,2]
[420304281,1775947873021,-5800.0,0.00017408,2]
[420304282,1775947873034,-5295.19875465,0.00017417,2]
[420304283,1775947873044,-5800.0,0.00017417,2]
[420304284,1775947873059,-153.38,0.00017423,2]
[420304285,1775947873069,-1175.3,0.00017424,2]
[420304286,1775947873085,-5800.0,0.00017425,2]
[420304287,1775947873099,-5800.0,0.00017434,2]
[420304288,1775947873109,-7618.21696252,0.00017435,2]
[420304289,1775947873125,-5800.0,0.00017442,2]
[420304290,1775947873137,-5800.0,0.00017451,2]
[420304291,1775947873147,-322.5,0.00017489,2]
[420304292,1775947873157,-196.75,0.00017489,2]
[420304293,1775947873168,-3122.13776735,0.00017513,2]
[420304294,1775947873177,-601.33761279,0.00017539,2]
[420304295,1775947873194,-2607.8121777,0.0001755,2]
[420304296,1775947873206,-3734.9994881,0.00017571,2]
[420304297,1775947873217,-500.0,0.00017616,2]
[420304298,1775947873228,-273.04159607,0.00017711,2]
[420304299,1775947873239,-387.76,0.00017728,2]
[420304300,1775947873261,-150.99,0.00017728,2]
[420304301,1775947873271,-9999.99,0.00017728,2]
[420304302,1775947873281,-999.99,0.00017728,2]
[420304303,1775947873299,-299.99,0.00017728,4]
[420304304,1775947873310,-9999.99,0.00017728,2]
[420304305,1775947873329,-9999.99,0.00017728,2]
[420304306,1775947873339,-1191.62,0.00017728,2]
[420304307,1775947873359,-150.99,0.00017728,2]
[420304308,1775947873370,-2000.0,0.00017782,2]
[420304309,1775947873384,-1200.0,0.00017792,7]
[420304310,1775947873402,-2400.0,0.00017792,7]
[420304311,1775947873429,-252.902,0.000178,2]
[420304312,1775947873442,-396.63750738,0.00017817,2]
[420304313,1775947873460,-1632.76,0.00017832,2]
[420304314,1775947873488,-3774.0,0.00017908,2]
[420304315,1775947873506,-414.0,0.00017908,2]
[420304316,1775947873519,-227.22409937,0.00017911,2]
[420304317,1775947873543,-581.8815488,0.00017991,2]
[420304318,1775947873553,-833.3910339,0.00018011,2]
[420304319,1775947873563,-742.0,0.0001805,2]
[420304320,1775947873584,-290.99111897,0.0001807,2]
[420304321,1775947873609,-1137.79,0.00018082,2]
[420304322,1775947873620,-300.0,0.000181,2]
[420304323,1775947873633,-160.0,0.00018148,2]
[420304324,1775947873643,-865.0,0.00018148,2]
[420304325,1775947873653,-1932.0,0.00018148,2]
[420304326,1775947873665,-3789.0,0.00018148,2]
[420304327,1775947874152,-522.0,0.00018148,2]
[420304328,1775947874196,-749.0,0.00018148,2]
[420304329,1775947874214,-1768.0,0.00018148,2]
[420304330,1775947874243,-1035.0,0.00018148,2]
[420304331,1775947874256,-7618.21696252,0.00018453,2]
[420304332,1775947874294,-686.63,0.00018504,2]
[420304333,1775947874309,-3122.13776735,0.00018519,2]
[420304334,1775947874334,-2000.0,0.00018763,2]
[420304335,1775947874344,-334.58686703,0.00018809,2]
[420304336,1775947874359,-173.63595017,0.00018832,2]
[420304337,1775947874374,-270.63789677,0.00018873,2]
[420304338,1775947874385,-207.76128198,0.00018873,2]
[420304339,1775947874394,-1100.28,0.00018904,2]
[420304340,1775947874408,-1031.0,0.00019,2]
[420304341,1775947874421,-288.1824,0.00019,2]
[420304342,1775947874432,-742.0,0.0001905,2]
[420304343,1775947874443,-212.13619082,0.00019067,2]
[420304344,1775947874453,-152.23996821,0.0001907,2]
[420304345,1775947874467,-196.41495383,0.00019078,2]
[420304346,1775947874480,-322.5,0.00019078,2]
[420304347,1775947874490,-196.75,0.00019078,2]
[420304348,1775947874518,-865.0,0.00019148,2]
[420304349,1775947874531,-1932.0,0.00019148,2]
[420304350,1775947874544,-3789.0,0.00019148,2]
[420304351,1775947874576,-522.0,0.00019148,2]
[420304352,1775947874593,-749.0,0.00019148,2]
[420304353,1775947874611,-1768.0,0.00019148,2]
[420304354,1775947874627,-1035.0,0.00019148,2]
[420304355,1775947874637,-151.0,0.00019178,2]
[420304356,1775947874660,-151.0,0.00019178,2]
[420304357,1775947874684,-151.0,0.00019178,2]
[420304358,1775947874696,-300.0,0.00019178,2]
[420304359,1775947874709,-625.50546137,0.00019225,2]
[420304360,1775947874742,-7618.21696252,0.0001947,2]
[420304361,1775947874754,-3122.13776735,0.00019526,2]
[420304362,1775947874777,-2000.0,0.0001956,2]
[420304363,1775947874793,-327.2080159,0.00019684,2]
[420304364,1775947874804,-396.63750738,0.00019733,2]
[420304365,1775947874856,-2627.83535143,0.0001985,7]
[420304366,1775947874889,-646.9,0.00019979,2]
[420304367,1775947874919,-120304.91571144,0.0001998,2]
[420304368,1775947874949,-245.14003248,0.00019983,2]
[420304369,1775947874978,-1200.0,0.00019984,7]
[420304370,1775947874988,-2400.0,0.00019984,7]
[420304371,1775947874998,-160.0,0.0002,7]
[420304372,1775947875018,-825.0,0.0002,30]
[420304373,1775947875028,-1031.0,0.0002,2]
[420304374,1775947875037,-200.0,0.0002,10]
[420304375,1775947875048,-209.398029,0.0002,2]
[420304376,1775947875058,-742.0,0.0002005,2]
[420304377,1775947875068,-2000.0,0.000201,2]
[420304378,1775947875081,-300.0,0.000201,10]
[420304379,1775947875091,-865.0,0.00020148,2]
[420304380,1775947875102,-1932.0,0.00020148,2]
[420304381,1775947875112,-3789.0,0.00020148,2]
[420304382,1775947875122,-522.0,0.00020148,2]
[420304383,1775947875132,-749.0,0.00020148,2]
[420304384,1775947875142,-1768.0,0.00020148,2]
[420304385,1775947875155,-1035.0,0.00020148,2]
[420304386,1775947875171,-328.3846,0.000202,2]
[420304387,1775947875181,-162.0,0.00020372,2]
[420304388,1775947875191,-7618.21696252,0.00020488,2]
[420304389,1775947875204,-3122.13776735,0.00020532,2]
[420304390,1775947875216,-3009.98,0.00020572,2]
[420304391,1775947875228,-686.63,0.00020667,2]
[420304392,1775947875241,-212.99135217,0.00020791,2]
[420304393,1775947875257,-3774.0,0.00020908,2]
[420304394,1775947875269,-36224.0,0.00020942,2]
[420304395,1775947875281,-160.76889095,0.00020987,2]
[420304396,1775947875300,-500.0,0.00020999,5]
[420304397,1775947875312,-1217.82043569,0.00021,7]
[420304398,1775947875323,-1031.0,0.00021,2]
[420304399,1775947875344,-179.17,0.00021,2]
[420304400,1775947875374,-742.0,0.0002105,2]
[420304401,1775947875386,-865.0,0.00021148,2]
[420304402,1775947875411,-1932.0,0.00021148,2]
[420304403,1775947875420,-3789.0,0.00021148,2]
[420304404,1775947875436,-522.0,0.00021148,2]
[420304405,1775947875450,-749.0,0.00021148,2]
[420304406,1775947875463,-1768.0,0.00021148,2]
[420304407,1775947875495,-1035.0,0.00021148,2]
[420304408,1775947875511,-248.68134626,0.00021175,2]
[420304409,1775947875521,-274.99,0.00021233,2]
[420304410,1775947875538,-282.71705098,0.00021266,6]
[420304411,1775947875550,-179.17,0.00021333,2]
[420304412,1775947875564,-2000.0,0.00021338,2]
[420304413,1775947875577,-374.195,0.000214,2]
[420304414,1775947875588,-269.05411985,0.000215,30]
[420304415,1775947875603,-7618.21696252,0.00021505,2]
[420304416,1775947875617,-3122.13776735,0.00021539,2]
[420304417,1775947875638,-2000.0,0.00021567,2]
[420304418,1775947875648,-287.87617874,0.00021582,2]
[420304419,1775947875659,-396.63750738,0.0002165,2]
[420304420,1775947875671,-3036.35083106,0.0002165,2]
[420304421,1775947875695,-507.33557437,0.0002165,2]
[420304422,1775947875705,-353.73390588,0.0002165,2]
[420304423,1775947875718,-247.63761736,0.0002165,3]
[420304424,1775947875730,-1338.59698899,0.0002165,2]
[420304425,1775947875743,-8605.53990224,0.0002165,2]
[420304426,1775947875752,-179.16,0.00021667,2]
[420304427,1775947875766,-5000.0,0.00021918,2]
[420304428,1775947875783,-2000.0,0.00021918,7]
[420304429,1775947875793,-2000.0,0.00021918,2]
[420304430,1775947875805,-298.44646254,0.00021918,2]
[420304431,1775947875827,-11058.19785151,0.00022,4]
[420304432,1775947875836,-207.03,0.00022,30]
[420304433,1775947875846,-1031.0,0.00022,2]
[420304434,1775947875862,-742.0,0.0002205,2]
[420304435,1775947875873,-530.94691654,0.00022082,30]
[420304436,1775947875882,-871.0,0.00022148,2]
[420304437,1775947875892,-1936.0,0.00022148,2]
[420304438,1775947875919,-3797.61145907,0.00022148,2]
[420304439,1775947875928,-537.0,0.00022148,2]
[420304440,1775947875943,-749.0,0.00022148,2]
[420304441,1775947875956,-1786.0,0.00022148,2]
[420304442,1775947875974,-1035.0,0.00022148,2]
[420304443,1775947875983,-1200.0,0.00022176,7]
[420304444,1775947875993,-2400.0,0.00022176,7]
[420304445,1775947876004,-2000.0,0.00022192,2]
[420304446,1775947876015,-156.73307116,0.00022242,30]
[420304447,1775947876026,-825.0,0.00022345,30]
[420304448,1775947876036,-2000.0,0.00022466,2]
[420304449,1775947876045,-7618.21696252,0.00022523,2]
[420304450,1775947876055,-152.0,0.00022525,3]
[420304451,1775947876067,-3122.13776735,0.00022545,2]
[420304452,1775947876076,-538.1082397,0.000226,30]
[420304453,1775947876086,-426.3961,0.000226,2]
[420304454,1775947876096,-2000.0,0.0002274,2]
[420304455,1775947876106,-686.63,0.0002283,2]
[420304456,1775947876125,-1031.0,0.00023,2]
[420304457,1775947876135,-2000.0,0.00023014,2]
[420304458,1775947876144,-742.11363508,0.0002305,2]
[420304459,1775947876157,-2000.0,0.00023288,2]
[420304460,1775947876168,-1615.92,0.00023288,17]
[420304461,1775947876178,-7618.21696252,0.0002354,2]
[420304462,1775947876187,-3122.13776735,0.00023552,2]
[420304463,1775947876201,-2000.0,0.00023562,2]
[420304464,1775947876213,-396.63750738,0.00023567,2]
[420304465,1775947876223,-807.16235956,0.000237,30]
[420304466,1775947876237,-646.9,0.00023799,2]
[420304467,1775947876249,-646.9,0.00023799,2]
[420304468,1775947876258,-646.9,0.00023799,2]
[420304469,1775947876272,-646.9,0.00023799,2]
[420304470,1775947876284,-647.02849301,0.00023799,2]
[420304471,1775947876294,-2000.0,0.000238,2]
[420304472,1775947876305,-485.8794,0.000238,2]
[420304473,1775947876316,-2000.0,0.00023836,2]
[420304474,1775947876326,-37210.0,0.000239,2]
[420304475,1775947876339,-3774.0,0.00023908,2]
[420304476,1775947876348,-708.3102319,0.00024,2]
[420304477,1775947876366,-1035.0,0.00024,2]
[420304478,1775947876378,-2000.0,0.0002411,2]
[420304479,1775947876388,-196.24,0.00024346,7]
[420304480,1775947876408,-1200.0,0.00024368,7]
[420304481,1775947876417,-2400.0,0.00024368,7]
[420304482,1775947876439,-2000.0,0.00024371,2]
[420304483,1775947876448,-2000.0,0.00024384,2]
[420304484,1775947876466,-5533.0,0.000244,3]
[420304485,1775947876476,-400.0,0.000245,2]
[420304486,1775947876486,-7618.21696252,0.00024558,2]
[420304487,1775947876503,-3122.13776735,0.00024558,2]
[420304488,1775947876518,-172.88416259,0.00024648,2]
[420304489,1775947876529,-2000.0,0.00024658,2]
[420304490,1775947876539,-1000.0,0.00024658,2]
[420304491,1775947876553,-151.0,0.00024658,2]
[420304492,1775947876570,-151.0,0.00024658,2]
[420304493,1775947876588,-151.0,0.00024658,2]
[420304494,1775947876598,-151.32066,0.00024658,2]
[420304495,1775947876608,-151.0,0.00024658,2]
[420304496,1775947876623,-151.0,0.00024658,2]
[420304497,1775947876643,-151.0,0.00024658,2]
[420304498,1775947876653,-151.0,0.00024658,2]
[420304499,1775947876665,-151.0,0.00024658,2]
[420304500,1775947876683,-151.0,0.00024658,2]
[420304501,1775947876697,-151.0,0.00024658,2]
[420304502,1775947876708,-151.0,0.00024658,2]
[420304503,1775947876718,-151.0,0.00024658,2]
[420304504,1775947876730,-151.0,0.00024658,2]
[420304505,1775947876741,-151.0,0.00024658,2]
[420304506,1775947876754,-151.0,0.00024658,2]
[420304507,1775947876763,-151.0,0.00024658,2]
[420304508,1775947876777,-151.0,0.00024658,2]
[420304509,1775947876787,-169.379523,0.00024658,2]
[420304510,1775947876807,-151.0,0.00024658,2]
[420304511,1775947876817,-151.0,0.00024658,2]
[420304512,1775947876829,-151.0,0.00024658,2]
[420304513,1775947876849,-151.0,0.00024658,2]
[420304514,1775947876859,-156.595787,0.00024658,2]
[420304515,1775947876873,-151.0,0.00024658,2]
[420304516,1775947876894,-151.0,0.00024658,2]
[420304517,1775947876909,-151.0,0.00024658,2]
[420304518,1775947876942,-151.0,0.00024658,2]
[420304519,1775947876956,-151.0,0.00024658,2]
[420304520,1775947876982,-206.258725,0.00024658,2]
[420304521,1775947876991,-151.0,0.00024658,2]
[420304522,1775947877001,-151.0,0.00024658,2]
[420304523,1775947877024,-151.0,0.00024658,2]
[420304524,1775947877043,-151.0,0.00024658,2]
[420304525,1775947877056,-153.141915,0.00024658,2]
[420304526,1775947877068,-231.811329,0.00024658,2]
[420304527,1775947877089,-231.811329,0.00024658,2]
[420304528,1775947877103,-231.811329,0.00024658,2]
[420304529,1775947877115,-231.811329,0.00024658,2]
[420304530,1775947877135,-231.811329,0.00024658,2]
[420304531,1775947877180,-231.811329,0.00024658,2]
[420304532,1775947877189,-231.811329,0.00024658,2]
[420304533,1775947877215,-231.811329,0.00024658,2]
[420304534,1775947877231,-231.811329,0.00024658,2]
[420304535,1775947877245,-231.811329,0.00024658,2]
[420304536,1775947877267,-231.811329,0.00024658,2]
[420304537,1775947877279,-231.811329,0.00024658,2]
[420304538,1775947877296,-231.811329,0.00024658,2]
[420304539,1775947877310,-231.811329,0.00024658,2]
[420304540,1775947877322,-231.811329,0.00024658,2]
[420304541,1775947877331,-231.811329,0.00024658,2]
[420304542,1775947877357,-151.0,0.00024658,2]
[420304543,1775947877368,-231.811329,0.00024658,2]
[420304544,1775947877381,-151.0,0.00024658,2]
[420304545,1775947877401,-151.0,0.00024658,2]
[420304546,1775947877412,-151.0,0.00024658,2]
[420304547,1775947877424,-202.217071,0.00024658,2]
[420304548,1775947877452,-231.811329,0.00024658,2]
[420304549,1775947877473,-151.0,0.00024658,2]
[420304550,1775947877485,-231.811329,0.00024658,2]
[420304551,1775947877495,-151.0,0.00024658,2]
[420304552,1775947877510,-231.811325,0.00024658,2]
[420304553,1775947877522,-151.0,0.00024658,2]
[420304554,1775947877538,-151.0,0.00024658,2]
[420304555,1775947877549,-151.0,0.00024658,2]
[420304556,1775947877560,-151.0,0.00024658,2]
[420304557,1775947877571,-151.0,0.00024658,2]
[420304558,1775947877587,-151.0,0.00024658,2]
[420304559,1775947877603,-151.0,0.00024658,2]
[420304560,1775947877612,-151.0,0.00024658,2]
[420304561,1775947877622,-151.0,0.00024658,2]
[420304562,1775947877643,-151.0,0.00024658,2]
[420304563,1775947877652,-151.0,0.00024658,2]
[420304564,1775947877663,-151.0,0.00024658,2]
[420304565,1775947877676,-151.0,0.00024658,2]
[420304566,1775947877685,-151.0,0.00024658,2]
[420304567,1775947877694,-151.0,0.00024658,2]
[420304568,1775947877714,-151.0,0.00024658,2]
[420304569,1775947877724,-268.683822,0.00024658,2]